bitfinex-derivatives/quotes_ETHF0:USTF0_20250422
["timestamp","ask_amount","ask_price","bid_price","bid_amount"]
[1745304839919,1.27523366,1580.3,1580.2,3.08396]
[1745304840214,3.02743366,1580.3,1580.2,3.08396]
[1745304842320,0.00949366,1580.3,1580.2,3.08396]
[1745304843113,0.00949366,1580.3,1580.2,9.40596]
[1745304855535,1.76199366,1580.3,1580.2,9.40596]
[1745304855734,0.00949366,1580.3,1580.2,9.40596]
[1745304856839,0.00949366,1580.3,1580.2,12.61376]
[1745304857636,0.00949366,1580.3,1580.2,9.40596]
[1745304862040,4.9398,1580.6,1580.5,1.26552]
[1745304862041,3.2078,1580.6,1580.5,1.26552]
[1745304862238,3.2078,1580.6,1580.5,5.42252]
[1745304865244,3.2078,1580.6,1580.5,11.74452]
[1745304866245,4.8955,1580.6,1580.5,5.42252]
[1745304867146,4.8955,1580.6,1580.5,11.74452]
[1745304868640,0.00949366,1580.7,1580.6,1.26544]
[1745304868842,0.00949366,1580.7,1580.6,4.82014]
[1745304869742,10.38581342,1581.1,1580.8,1.26528]
[1745304869942,10.38581342,1581.1,1581.0,1.26512]
[1745304870137,12.17991342,1581.1,1581.0,1.26512]
[1745304870549,13.44495342,1581.1,1581.0,1.26512]
[1745304870747,3.05914,1581.1,1581.0,1.26512]
[1745304871257,9.38114,1581.1,1581.0,1.26512]
[1745304874050,8.1161,1581.1,1581.0,1.26512]
[1745304874244,9.38114,1581.1,1581.0,1.26512]
[1745304874443,8.1161,1581.1,1581.0,1.26512]
[1745304874643,9.38114,1581.1,1581.0,1.26512]
[1745304877152,8.1161,1581.1,1581.0,1.26512]
[1745304878055,8.1161,1581.1,1581.0,3.05582]
[1745304878355,1.7941,1581.1,1581.0,43.85582]
[1745304878848,8.0948,1581.3,1581.2,1.26496]
[1745304879056,6.322,1581.3,1581.2,5.42096]
[1745304879350,1.8157,1581.4,1581.3,1.26488]
[1745304879550,1.8157,1581.4,1581.3,4.47268]
[1745304879753,1.8157,1581.4,1581.3,6.25358]
[1745304880351,1.7681,1581.5,1581.4,1.2648]
[1745304880660,1.7681,1581.5,1581.4,3.0457]
[1745304881151,8.0901,1581.5,1581.4,3.0457]
[1745304881350,9.9058,1581.5,1581.4,3.0457]
[1745304883151,3.5838,1581.5,1581.4,3.0457]
[1745304883652,4.84857,1581.5,1581.3,7.3618]
[1745304883847,1.8127,1581.4,1581.3,11.21948]
[1745304884250,1.8127,1581.4,1581.3,52.01948]
[1745304885653,3.2078,1581.8,1581.5,1.26472]
[1745304885843,5.88073662,1582.3,1581.8,1.26448]
[1745304885844,6.8373,1582.1,1581.8,1.26448]
[1745304886049,3.05983,1581.9,1581.8,1.26448]
[1745304886249,1.26448,1581.8,1581.7,3.2078]
[1745304886549,4.89398,1581.8,1581.7,3.21729366]
[1745304886754,4.89398,1581.8,1581.7,0.00949366]
[1745304887552,4.89398,1581.8,1581.7,1.27405366]
[1745304888954,4.89398,1581.8,1581.7,0.00949366]
[1745304889146,11.21598,1581.8,1581.7,0.00949366]
[1745304889355,11.21598,1581.8,1581.7,1.27405366]
[1745304891256,11.21598,1581.8,1581.7,0.00949366]
[1745304891957,11.21598,1581.8,1581.7,1.27405366]
[1745304894661,9.9515,1581.8,1581.7,1.27405366]
[1745304894958,8.1174,1581.8,1581.7,4.48185366]
[1745304895159,8.1174,1581.8,1581.7,7.99975366]
[1745304895160,1.7954,1581.8,1581.7,7.99975366]
[1745304896063,1.7153,1582.0,1581.9,1.2644]
[1745304896560,1.26418,1582.2,1582.1,1.26424]
[1745304896754,3.00748,1582.2,1582.1,1.26424]
[1745304896959,3.00748,1582.2,1582.0,2.12645]
[1745304897163,3.09114,1582.1,1582.0,2.12645]
[1745304897361,1.8269,1582.1,1582.0,2.12645]
[1745304898264,9.41314,1582.1,1582.0,2.12645]
[1745304898568,9.41314,1582.1,1581.9,10.34404]
[1745304898767,1.8269,1582.0,1581.9,10.34404]
[1745304899769,6.322,1582.1,1582.0,1.26432]
[1745304900057,6.322,1582.1,1582.0,3.96222]
[1745304900364,3.4456,1582.2,1582.1,1.26424]
[1745304901166,9.7676,1582.2,1582.1,1.26424]
[1745304901371,11.03176,1582.2,1582.1,1.26424]
[1745304901659,11.03182,1582.2,1582.0,1.26426]
[1745304901862,1.7023,1582.1,1582.0,1.26426]
[1745304902565,2.96654,1582.1,1582.0,1.26426]
[1745304902766,1.7023,1582.1,1582.0,1.26426]
[1745304903362,8.0243,1582.1,1582.0,1.26432]
[1745304903563,8.0243,1582.1,1581.7,0.00949366]
[1745304903564,1.26448,1581.8,1581.7,0.00949366]
[1745304903759,1.7583,1582.0,1581.9,1.2644]
[1745304903967,3.02273,1581.9,1581.8,1.26448]
[1745304904268,1.26448,1581.8,1581.7,1.27403366]
[1745304904470,4.78958,1581.8,1581.7,1.27403366]
[1745304905159,9.8471,1581.8,1581.7,1.27403366]
[1745304905477,11.11158,1581.8,1581.7,0.00949366]
[1745304909567,18.00842,1581.8,1581.4,2.11923]
[1745304909768,1.26472,1581.5,1581.4,4.152]
[1745304910157,7.58672,1581.5,1581.3,45.27262]
[1745304910365,4.796,1581.4,1581.3,45.27262]
[1745304911170,11.118,1581.4,1581.3,42.06482]
[1745304911467,11.118,1581.4,1581.2,104.56868366]
[1745304911769,3.00918,1581.3,1581.2,4.16149366]
[1745304912162,9.33118,1581.3,1581.2,5.42645366]
[1745304912572,9.33118,1581.3,1581.2,4.16149366]
[1745304912764,9.33118,1581.3,1581.2,5.42645366]
[1745304913466,8.0663,1581.3,1581.2,5.42645366]
[1745304913667,8.0663,1581.3,1581.2,7.28335366]
[1745304915873,9.33118,1581.3,1581.2,7.28335366]
[1745304917372,9.33118,1581.3,1581.2,4.16149366]
[1745304918277,9.33118,1581.3,1581.2,5.42645366]
[1745304918470,8.0663,1581.3,1581.2,5.42645366]
[1745304918662,8.0663,1581.3,1581.2,7.23105366]
[1745304920075,9.33118,1581.3,1581.2,7.23105366]
[1745304920772,8.0663,1581.3,1581.2,7.23105366]
[1745304921474,9.33118,1581.3,1581.2,7.23105366]
[1745304922175,9.33118,1581.3,1581.2,5.42645366]
[1745304924178,8.0663,1581.3,1581.2,5.42645366]
[1745304925672,8.0663,1581.3,1581.2,7.21165366]
[1745304926979,6.322,1581.3,1581.2,7.21165366]
[1745304928387,4.94979366,1581.5,1581.4,1.2648]
[1745304929182,11.27179366,1581.5,1581.4,3.0026]
[1745304929381,11.27179366,1581.5,1581.4,3.8646]
[1745304930082,12.53651366,1581.5,1581.4,3.8646]
[1745304930281,12.53651366,1581.5,1581.4,2.1268]
[1745304930682,12.53651366,1581.5,1581.4,1.2648]
[1745304933280,12.53651366,1581.5,1581.3,2.6696]
[1745304933281,1.2648,1581.4,1581.3,3.93442]
[1745304933476,3.0612,1581.4,1581.3,3.93442]
[1745304934185,8.1184,1581.4,1581.3,3.93442]
[1745304935186,9.3832,1581.4,1581.3,3.93442]
[1745304935990,8.1184,1581.4,1581.3,3.93442]
[1745304937291,9.3832,1581.4,1581.3,3.93442]
[1745304939389,6.322,1581.4,1581.3,3.93442]
[1745304940290,1.27426366,1581.5,1581.4,1.2648]
[1745304941090,7.59626366,1581.5,1581.4,1.2648]
[1745304941292,1.2648,1581.4,1581.3,3.93441]
[1745304944684,1.26512,1581.0,1580.9,4.153]
[1745304944887,3.2078,1581.1,1581.0,1.26512]
[1745304945193,3.2078,1581.1,1581.0,43.90892]
[1745304945389,1.26497,1581.2,1581.1,1.26504]
[1745304945586,8.91446662,1581.3,1581.2,1.26496]
[1745304946193,15.23646662,1581.3,1581.2,1.26496]
[1745304946890,13.97153662,1581.3,1581.2,1.26496]
[1745304947098,13.97153662,1581.3,1581.2,2.11166]
[1745304947280,15.23641662,1581.3,1581.2,2.11166]
[1745304947996,13.97153662,1581.3,1581.2,2.11166]
[1745304948895,8.0908,1581.3,1581.2,2.11166]
[1745304949890,9.35568,1581.3,1581.2,2.11166]
[1745304950299,8.0908,1581.3,1581.2,2.11166]
[1745304950505,9.35568,1581.3,1581.2,2.11166]
[1745304951098,9.35568,1581.3,1581.2,0.8467]
[1745304951298,9.35568,1581.3,1581.2,2.11166]
[1745304951798,8.0908,1581.3,1581.2,2.11166]
[1745304952398,8.0908,1581.3,1581.2,3.03396]
[1745304952598,9.35568,1581.3,1581.2,3.03396]
[1745304958406,8.0908,1581.3,1581.2,3.03396]
[1745304958703,9.35568,1581.3,1581.2,4.88846]
[1745304958899,11.11568,1581.3,1581.2,4.88846]
[1745304959105,9.34688,1581.3,1581.2,4.88846]
[1745304960605,9.34688,1581.3,1581.2,45.68846]
[1745304961208,8.082,1581.3,1581.2,45.68846]
[1745304961402,6.322,1581.3,1581.2,53.89626]
[1745304961597,5.89023028,1581.5,1581.4,1.2648]
[1745304961798,0.00949366,1581.5,1581.4,5.4188]
[1745304963107,6.33149366,1581.5,1581.4,5.4188]
[1745304964206,0.00949366,1581.5,1581.4,5.4188]
[1745304965307,8.16178806,1581.6,1581.5,1.26472]
[1745304965513,8.16178806,1581.6,1581.5,3.85462]
[1745304965705,1.7471,1581.8,1581.7,1.26456]
[1745304965906,1.7471,1581.8,1581.7,5.41756]
[1745304966110,8.0691,1581.8,1581.7,5.41756]
[1745304968214,6.322,1581.8,1581.7,7.09956]
[1745304968801,7.58648,1581.8,1581.7,4.153]
[1745304969006,10.17678,1581.8,1581.7,4.153]
[1745304971005,10.17678,1581.8,1581.7,5.41756]
[1745304972211,6.322,1581.8,1581.7,5.41756]
[1745304973419,6.322,1581.8,1581.7,7.27096]
[1745304980318,1.71269366,1581.9,1581.7,6.0064]
[1745304980534,1.71269366,1581.9,1581.8,2.96438]
[1745304980722,1.71269366,1581.9,1581.8,3.80258]
[1745304981222,8.03469366,1581.9,1581.8,3.80258]
[1745304986525,8.03469366,1581.9,1581.7,1.26455]
[1745304986730,8.03469366,1581.9,1581.7,5.41656]
[1745304986731,2.5512,1581.8,1581.7,5.41656]
[1745304987234,8.8732,1581.8,1581.7,5.41656]
[1745304987728,6.322,1581.8,1581.7,5.41656]
[1745304987928,6.322,1581.8,1581.7,7.26356]
[1745304988231,1.70219366,1581.9,1581.8,1.26448]
[1745304988433,1.70219366,1581.9,1581.8,3.94568]
[1745304988627,2.56069366,1581.9,1581.8,3.94568]
[1745304989126,8.88269366,1581.9,1581.8,3.94568]
[1745304990129,8.88269366,1581.9,1581.8,1.26448]
[1745304991135,8.88269366,1581.9,1581.8,3.07458]
[1745304991325,8.88269366,1581.9,1581.8,3.98338]
[1745304992535,8.02419366,1581.9,1581.8,3.98338]
[1745304994731,6.33149366,1581.9,1581.8,7.19118]
[1745305000154,0.00949366,1581.9,1581.8,7.19118]
[1745305001255,6.33149366,1581.9,1581.8,7.19118]
[1745305002647,7.59591366,1581.9,1581.5,11.58485538]
[1745305002846,3.5171,1581.8,1581.7,1.26452]
[1745305004160,9.8391,1581.8,1581.7,1.26452]
[1745305007863,1.26456,1581.7,1581.6,4.151]
[1745305008068,1.7073,1581.7,1581.6,5.41564]
[1745305008268,1.7073,1581.7,1581.6,4.151]
[1745305008970,1.7073,1581.7,1581.6,5.41564]
[1745305009168,8.0293,1581.7,1581.6,5.41564]
[1745305010769,9.29386,1581.7,1581.6,5.41564]
[1745305011070,9.29386,1581.7,1581.6,4.151]
[1745305011672,8.0293,1581.7,1581.6,5.41564]
[1745305012975,9.29386,1581.7,1581.6,5.41564]
[1745305013272,8.0293,1581.7,1581.6,5.41564]
[1745305013770,9.29386,1581.7,1581.6,4.151]
[1745305014173,8.0293,1581.7,1581.6,4.151]
[1745305014374,9.29386,1581.7,1581.6,4.151]
[1745305014573,9.29386,1581.7,1581.6,5.41564]
[1745305014574,8.0293,1581.7,1581.6,5.41564]
[1745305015766,9.29386,1581.7,1581.6,5.41564]
[1745305018180,9.29386,1581.7,1581.6,4.151]
[1745305018475,9.29386,1581.7,1581.6,5.41564]
[1745305018876,9.29386,1581.7,1581.6,4.151]
[1745305019180,9.29386,1581.7,1581.6,5.41564]
[1745305019480,9.29386,1581.7,1581.6,4.151]
[1745305020273,9.29386,1581.7,1581.6,5.41564]
[1745305025375,9.29386,1581.7,1581.6,4.151]
[1745305025674,1.26464,1581.6,1581.5,5.41665]
[1745305025878,3.01444,1581.6,1581.5,5.41665]
[1745305026181,9.33644,1581.6,1581.5,5.41665]
[1745305027385,8.0718,1581.6,1581.5,5.41665]
[1745305027572,8.0718,1581.6,1581.5,7.22095]
[1745305031987,6.322,1581.6,1581.5,7.22095]
[1745305032483,6.322,1581.6,1581.5,12.22095]
[1745305033188,5.89023028,1581.9,1581.8,1.26448]
[1745305033383,5.89023028,1581.9,1581.8,5.41548]
[1745305033584,0.00949366,1581.9,1581.8,8.62328]
[1745305033881,0.00949366,1581.9,1581.8,10.38618]
[1745305034078,6.33149366,1581.9,1581.8,10.38618]
[1745305035189,0.00949366,1581.9,1581.8,10.38618]
[1745305035390,0.00949366,1581.9,1581.8,15.38618]
[1745305036089,6.33149366,1581.9,1581.8,15.38618]
[1745305039091,0.00949366,1581.9,1581.8,15.38618]
[1745305041083,6.33149366,1581.9,1581.8,15.38618]
[1745305041685,6.33149366,1581.9,1581.8,10.38618]
[1745305042897,6.33149366,1581.9,1581.8,5.41548]
[1745305043796,6.33149366,1581.9,1581.8,7.21798]
[1745305043999,6.33149366,1581.9,1581.8,10.42578]
[1745305044500,6.33149366,1581.9,1581.8,15.42578]
[1745305045099,0.00949366,1581.9,1581.8,15.42578]
[1745305046192,0.00949366,1581.9,1581.8,6.27478]
[1745305046496,0.00949366,1581.9,1581.8,10.42478]
[1745305047299,6.33149366,1581.9,1581.8,10.42478]
[1745305047698,8.15649366,1581.9,1581.8,10.42478]
[1745305048297,8.15649366,1581.9,1581.8,7.3578]
[1745305048500,6.33149366,1581.9,1581.8,8.62228]
[1745305048799,6.33149366,1581.9,1581.8,10.35218]
[1745305049301,0.00949366,1581.9,1581.8,10.35218]
[1745305054305,0.00949366,1581.9,1581.8,15.35218]
[1745305054998,3.66e-06,1581.9,1581.8,15.35218]
[1745305056506,3.66e-06,1581.9,1581.8,10.35218]
[1745305056712,3.66e-06,1581.9,1581.8,15.35218]
[1745305057511,1.745,1582.2,1582.1,1.26424]
[1745305057705,1.745,1582.2,1582.1,8.62204]
[1745305057905,1.8452,1582.3,1582.2,1.26416]
[1745305058204,1.7465,1582.5,1582.4,1.264]
[1745305058408,3.4963,1582.5,1582.4,5.414]
[1745305058603,8.4963,1582.5,1582.4,5.414]
[1745305058809,3.4963,1582.5,1582.4,5.414]
[1745305059107,9.8183,1582.5,1582.4,46.214]
[1745305065716,8.0685,1582.5,1582.4,49.4218]
[1745305065910,8.0685,1582.5,1582.4,50.2806]
[1745305069713,8.0685,1582.5,1582.4,52.0321]
[1745305070310,6.322,1582.5,1582.4,52.0321]
[1745305071314,1.7519,1582.7,1582.6,1.26384]
[1745305071616,1.7519,1582.7,1582.6,4.47164]
[1745305072114,8.0739,1582.7,1582.6,4.47164]
[1745305074017,8.0739,1582.7,1582.6,1.26384]
[1745305074519,8.0739,1582.7,1582.6,42.06384]
[1745305076815,8.0739,1582.7,1582.6,43.84684]
[1745305078615,8.0739,1582.7,1582.6,47.05464]
[1745305083229,6.322,1582.7,1582.6,47.05464]
[1745305083524,8.8855,1582.7,1582.6,45.27164]
[1745305084925,8.8855,1582.7,1582.6,42.06384]
[1745305087829,8.8855,1582.7,1582.6,43.82414]
[1745305088328,8.8855,1582.7,1582.6,42.06384]
[1745305090228,5.88073662,1583.4,1582.6,45.8]
[1745305090427,1.26331,1583.3,1582.9,3.2078]
[1745305090636,4.7794,1583.3,1583.0,5.8582]
[1745305090928,4.7794,1583.3,1583.1,1.26342]
[1745305091131,1.7689,1583.2,1583.1,42.06342]
[1745305092333,8.0909,1583.2,1583.1,42.06342]
[1745305092629,8.0909,1583.2,1583.1,43.80752]
[1745305093722,8.0909,1583.2,1583.1,42.06342]
[1745305100537,6.322,1583.2,1583.1,43.73452]
[1745305102040,6.322,1583.2,1583.1,42.06342]
[1745305102236,8.1494,1583.2,1583.1,42.06342]
[1745305104038,8.1494,1583.2,1583.1,43.79852]
[1745305106131,6.322,1583.2,1583.1,47.00632]
[1745305111145,1.7067,1583.5,1583.4,1.2632]
[1745305111445,1.7067,1583.5,1583.4,5.4082]
[1745305111845,1.7067,1583.5,1583.4,46.2082]
[1745305112341,8.0287,1583.5,1583.4,46.2082]
[1745305113053,8.0287,1583.5,1583.4,47.1351]
[1745305114142,8.0287,1583.5,1583.4,48.8333]
[1745305119449,14.29182,1583.5,1583.4,4.145]
[1745305119649,1.2632,1583.4,1583.3,0.00949366]
[1745305119840,3.8157,1583.4,1583.3,4.15449366]
[1745305120243,10.1377,1583.4,1583.3,4.15449366]
[1745305120537,10.1377,1583.4,1583.3,5.41777366]
[1745305120746,8.8745,1583.4,1583.3,5.41777366]
[1745305123955,8.8745,1583.4,1583.3,4.15449366]
[1745305125050,8.8745,1583.4,1583.3,5.41777366]
[1745305125256,8.8745,1583.4,1583.3,4.15449366]
[1745305125557,10.1377,1583.4,1583.3,4.15349366]
[1745305126054,10.1377,1583.4,1583.3,0.00949366]
[1745305126353,10.1377,1583.4,1583.3,4.15349366]
[1745305126552,10.1377,1583.4,1583.3,0.00949366]
[1745305126745,10.1377,1583.4,1583.3,4.15349366]
[1745305127760,13.3455,1583.4,1583.3,4.15349366]
[1745305128149,13.3455,1583.4,1583.3,0.00949366]
[1745305128355,13.3455,1583.4,1583.3,4.15349366]
[1745305130156,13.3455,1583.4,1583.3,5.41677366]
[1745305132059,13.3455,1583.4,1583.3,1.27277366]
[1745305133771,17.96303662,1583.4,1583.3,1.27277366]
[1745305134066,14.75523662,1583.4,1583.3,1.27277366]
[1745305139772,8.8745,1583.4,1583.3,1.27277366]
[1745305141274,6.322,1583.4,1583.3,3.96917366]
[1745305141675,6.322,1583.4,1583.3,12.17697366]
[1745305142875,6.322,1583.4,1583.3,7.17697366]
[1745305144878,6.322,1583.4,1583.3,12.17697366]
[1745305146167,6.322,1583.6,1583.5,1.26312]
[1745305146370,6.322,1583.6,1583.5,5.40712]
[1745305149972,6.322,1583.6,1583.5,8.61492]
[1745305151086,1.801,1583.9,1583.8,1.26288]
[1745305151287,1.801,1583.9,1583.8,5.40688]
[1745305151886,9.08853662,1584.0,1583.9,1.2628]
[1745305152077,10.80143662,1584.0,1583.9,2.151]
[1745305152278,10.80143662,1584.0,1583.9,0.8882]
[1745305152479,12.06416662,1584.0,1583.8,4.144]
[1745305152779,3.8435,1583.9,1583.8,4.144]
[1745305152983,3.8435,1583.9,1583.7,0.8882]
[1745305153182,2.6039,1583.8,1583.7,0.8882]
[1745305153482,2.6039,1583.8,1583.7,5.0322]
[1745305154376,8.9259,1583.8,1583.7,6.29516]
[1745305155485,8.9259,1583.8,1583.7,5.0322]
[1745305155987,8.9259,1583.8,1583.7,6.29516]
[1745305156487,8.9259,1583.8,1583.7,5.0322]
[1745305156788,8.9259,1583.8,1583.7,6.29516]
[1745305157289,8.9259,1583.8,1583.7,4.144]
[1745305157681,8.9259,1583.8,1583.7,5.40696]
[1745305158891,8.9259,1583.8,1583.7,4.144]
[1745305159094,8.0349,1583.8,1583.7,5.40696]
[1745305159297,8.0349,1583.8,1583.7,7.13406]
[1745305159585,8.0349,1583.8,1583.7,5.40696]
[1745305160391,8.0349,1583.8,1583.7,7.25156]
[1745305164096,6.322,1583.8,1583.7,10.45936]
[1745305166395,6.322,1583.8,1583.7,15.45936]
[1745305167084,2.7301,1584.1,1583.7,15.45936]
[1745305167292,2.7301,1584.1,1584.0,1.26272]
[1745305167491,2.7301,1584.1,1584.0,5.40472]
[1745305168199,9.0521,1584.1,1584.0,5.40472]
[1745305168699,8.1434,1584.1,1584.0,5.40472]
[1745305168895,8.1434,1584.1,1584.0,8.06742]
[1745305169692,9.0361,1584.1,1584.0,8.06742]
[1745305170796,9.0361,1584.1,1584.0,5.40472]
[1745305171803,9.0361,1584.1,1584.0,4.142]
[1745305171997,9.0361,1584.1,1584.0,5.40472]
[1745305188507,26.28130662,1584.1,1583.9,4.14]
[1745305188814,2.98672,1584.0,1583.9,4.14]
[1745305189999,2.98672,1584.0,1583.9,5.4028]
[1745305190200,8.046,1584.0,1583.9,5.4028]
[1745305191927,8.046,1584.0,1583.9,7.2352]
[1745305192639,8.046,1584.0,1583.9,10.443]
[1745305194241,6.322,1584.0,1583.9,10.443]
[1745305199335,6.322,1584.0,1583.9,51.243]
[1745305201036,6.322,1584.0,1583.9,51.75747619]
[1745305201235,6.322,1584.0,1583.9,51.243]
[1745305203242,1.7024,1584.2,1584.1,1.26264]
[1745305203738,4.9363,1584.3,1584.2,1.26256]
[1745305203934,0.8834,1584.3,1584.2,8.61036]
[1745305204134,7.2054,1584.3,1584.2,8.61036]
[1745305204334,6.322,1584.3,1584.2,11.13046]
[1745305204843,6.322,1584.3,1584.2,6.99046]
[1745305205138,1.6987,1584.3,1584.2,11.13046]
[1745305206039,1.6987,1584.3,1584.2,6.99046]
[1745305206341,1.6987,1584.3,1584.2,11.13046]
[1745305208438,5.88073662,1584.4,1584.3,1.26248]
[1745305208643,5.88073662,1584.4,1584.3,3.11398]
[1745305208840,1.7349,1584.5,1584.4,1.2624]
[1745305209044,1.7349,1584.8,1584.7,1.26216]
[1745305209346,1.7349,1584.8,1584.7,4.14]
[1745305209534,1.7349,1584.8,1584.7,44.94]
[1745305209741,1.7349,1584.8,1584.7,4.14]
[1745305209742,7.99698,1584.8,1584.7,4.14]
[1745305210044,6.7349,1584.8,1584.7,4.14]
[1745305210343,7.99698,1584.8,1584.7,6.322]
[1745305210535,6.7349,1584.8,1584.7,6.322]
[1745305210738,6.7349,1584.8,1584.7,7.58416]
[1745305211445,1.7349,1584.8,1584.7,7.58416]
[1745305213744,7.99698,1584.8,1584.7,6.322]
[1745305214638,7.99698,1584.8,1584.7,7.58416]
[1745305215250,7.99698,1584.8,1584.7,6.322]
[1745305215440,13.87771662,1584.8,1584.7,6.322]
[1745305216946,13.87771662,1584.8,1584.7,7.58416]
[1745305217149,13.87771662,1584.8,1584.7,6.322]
[1745305217745,12.61563662,1584.8,1584.3,4.139]
[1745305217946,1.26238,1584.5,1584.3,5.40142]
[1745305218145,3.6354,1584.4,1584.3,5.40148]
[1745305218347,9.51613662,1584.4,1584.3,5.40148]
[1745305218549,7.72243662,1584.4,1584.3,5.40148]
[1745305220549,7.72243662,1584.4,1584.3,1.26248]
[1745305221047,8.98483662,1584.4,1584.3,1.26248]
[1745305221247,7.72243662,1584.4,1584.3,1.26248]
[1745305221649,8.98483662,1584.4,1584.3,1.26248]
[1745305221849,12.19263662,1584.4,1584.3,1.26248]
[1745305222349,1.26248,1584.3,1584.2,11.73200366]
[1745305222547,3.86008,1584.3,1584.2,11.73200366]
[1745305223352,2.5976,1584.3,1584.2,11.73200366]
[1745305224153,3.86008,1584.3,1584.2,11.73200366]
[1745305225155,2.5976,1584.3,1584.2,11.73200366]
[1745305225750,5.88073662,1584.4,1584.3,1.26248]
[1745305225952,8.42793662,1584.4,1584.3,1.26248]
[1745305226748,9.69033662,1584.4,1584.3,1.26248]
[1745305227046,1.26248,1584.3,1584.2,6.33149366]
[1745305227247,3.00738,1584.3,1584.2,6.33149366]
[1745305227444,1.7449,1584.3,1584.2,7.59405366]
[1745305227644,3.00738,1584.3,1584.2,7.59405366]
[1745305228146,1.7449,1584.3,1584.2,7.59405366]
[1745305228353,6.74183662,1584.4,1584.3,1.26248]
[1745305228650,8.48673662,1584.4,1584.3,1.26248]
[1745305229053,5.88073662,1584.4,1584.3,1.26248]
[1745305229253,5.88073662,1584.4,1584.3,3.92258]
[1745305230054,0.0149,1584.5,1584.4,1.2624]
[1745305230355,1.7584,1584.7,1584.6,1.26224]
[1745305230543,1.7584,1584.7,1584.6,5.40024]
[1745305230947,1.7584,1584.7,1584.6,6.27534]
[1745305231146,6.78653662,1584.8,1584.7,1.26216]
[1745305231355,6.78653662,1584.8,1584.7,2.94596]
[1745305231864,8.54493662,1584.8,1584.7,2.94596]
[1745305232058,9.45063662,1584.8,1584.7,2.94596]
[1745305232260,10.71271662,1584.8,1584.7,9.26796]
[1745305232457,9.45063662,1584.8,1584.7,9.26796]
[1745305232658,10.71271662,1584.8,1584.7,6.322]
[1745305233952,10.71271662,1584.8,1584.7,7.58416]
[1745305234659,13.92051662,1584.8,1584.7,7.58416]
[1745305235653,5.88073662,1584.8,1584.7,7.58416]
[1745305235855,5.88073662,1584.8,1584.7,10.10706]
[1745305236959,7.14281662,1584.8,1584.7,8.42956]
[1745305237261,18.81951662,1584.8,1584.7,4.0451]
[1745305237666,12.96201662,1584.8,1584.7,4.0451]
[1745305237854,12.96201662,1584.8,1584.7,5.30726]
[1745305238054,17.96201662,1584.8,1584.7,4.0451]
[1745305239262,12.96201662,1584.8,1584.7,4.0451]
[1745305239757,12.96201662,1584.8,1584.7,5.30726]
[1745305240256,12.96201662,1584.8,1584.7,4.0451]
[1745305241063,12.96201662,1584.8,1584.7,5.30726]
[1745305242165,12.96201662,1584.8,1584.7,4.0451]
[1745305246364,17.96201662,1584.8,1584.7,4.0451]
[1745305246864,12.96201662,1584.8,1584.7,4.0451]
[1745305253169,17.96201662,1584.8,1584.7,4.0451]
[1745305253959,12.96201662,1584.8,1584.7,4.0451]
[1745305260171,12.96201662,1584.8,1584.7,4.9386]
[1745305260577,12.96201662,1584.8,1584.7,4.0451]
[1745305266285,17.96201662,1584.8,1584.7,4.0451]
[1745305266488,12.96201662,1584.8,1584.7,4.0451]
[1745305268282,12.96201662,1584.8,1584.7,2.05817]
[1745305268489,1.26248,1584.3,1584.2,2.64729366]
[1745305268982,1.26248,1584.3,1584.2,7.64729366]
[1745305269189,1.26248,1584.3,1584.2,13.96929366]
[1745305269489,1.26248,1584.3,1584.2,16.10205366]
[1745305269793,5.88073662,1584.4,1584.3,1.26248]
[1745305269982,7.14313662,1584.4,1584.3,3.00558]
[1745305270182,7.14313662,1584.4,1584.3,8.00558]
[1745305270493,7.14313662,1584.4,1584.3,3.00558]
[1745305271186,1.26248,1584.3,1584.2,6.33149366]
[1745305271389,1.26248,1584.3,1584.2,7.59405366]
[1745305271582,1.26248,1584.3,1584.2,12.59405366]
[1745305273491,1.26248,1584.3,1584.2,7.59405366]
[1745305275191,1.26248,1584.3,1584.2,6.33149366]
[1745305275886,7.14321662,1584.3,1584.2,6.33149366]
[1745305276091,9.81261662,1584.3,1584.2,6.33149366]
[1745305278599,8.93971662,1584.3,1584.2,6.33149366]
[1745305278786,7.14321662,1584.3,1584.2,7.59405366]
[1745305280799,7.14321662,1584.3,1584.2,6.33149366]
[1745305280988,7.14321662,1584.3,1584.2,7.59405366]
[1745305281493,5.88073662,1584.3,1584.2,7.59405366]
[1745305282696,7.14321662,1584.3,1584.2,7.59405366]
[1745305283500,7.14312662,1584.5,1584.4,1.2624]
[1745305284197,7.14312662,1584.5,1584.4,7.5844]
[1745305284695,7.14312662,1584.5,1584.4,6.322]
[1745305284991,7.14305662,1584.5,1584.4,7.5844]
[1745305285389,7.14305662,1584.5,1584.4,6.322]
[1745305286092,8.94665662,1584.5,1584.4,6.322]
[1745305287196,8.94665662,1584.5,1584.4,7.2302]
[1745305289203,8.94665662,1584.5,1584.4,8.4926]
[1745305289401,7.14305662,1584.5,1584.4,10.2567]
[1745305290096,5.88073662,1584.5,1584.4,10.2567]
[1745305290700,7.14305662,1584.5,1584.4,10.2567]
[1745305291797,7.14305662,1584.5,1584.4,8.9943]
[1745305292009,8.85145662,1584.5,1584.4,6.322]
[1745305292294,9.69415662,1584.5,1584.4,6.322]
[1745305295407,14.69415662,1584.5,1584.4,6.322]
[1745305295607,9.69415662,1584.5,1584.4,6.322]
[1745305295909,14.69415662,1584.5,1584.4,6.322]
[1745305296507,18.83715662,1584.5,1584.4,4.98666]
[1745305297207,1.26248,1584.3,1584.2,6.33149366]
[1745305297506,4.47028,1584.3,1584.2,6.33149366]
[1745305297907,6.21068,1584.3,1584.2,6.33149366]
[1745305300909,17.09141662,1584.3,1584.2,6.33149366]
[1745305301106,12.09141662,1584.3,1584.2,0.00949366]
[1745305302308,12.09141662,1584.3,1584.2,6.33149366]